[Event "Titled Tuesday Blitz May 23 Late 2023"]
[White "Jaracz, Pawel"]
[Black "ArrestingPieces"]
[WhiteFideId "1102222"]
[WhiteElo "2438"]
[BlackElo "2525"]
[Result "1-0"]
[Round "11"]
[TimeControl "180+2"]
[Date "2023.05.23"]
[WhiteClock "0:00:06"]
[BlackClock "0:00:03"]

1. d4 {[%clk 0:03:00]}  d5 {[%clk 0:02:59]} 2. c4 {[%clk 0:03:00]}  e6 {[%clk 0:03:00]} 3. Nc3 {[%clk 0:03:00]}  Be7 {[%clk 0:03:00]} 4. Nf3 {[%clk 0:02:58]}  Nf6 {[%clk 0:03:01]} 5. Bf4 {[%clk 0:02:58]}  O-O {[%clk 0:03:01]} 6. a3 {[%clk 0:02:54]}  c5 {[%clk 0:02:59]} 7. dxc5 {[%clk 0:02:54]}  Bxc5 {[%clk 0:02:59]} 8. e3 {[%clk 0:02:54]}  Nc6 {[%clk 0:02:57]} 9. Qc2 {[%clk 0:02:54]}  Qa5 {[%clk 0:02:55]} 10. Rd1 {[%clk 0:02:51]}  Be7 {[%clk 0:02:35]} 11. Be2 {[%clk 0:02:44]}  dxc4 {[%clk 0:02:29]} 12. Bxc4 {[%clk 0:02:39]}  e5 {[%clk 0:02:11]} 13. Bg3 {[%clk 0:02:38]}  Bg4 {[%clk 0:02:06]} 14. O-O {[%clk 0:02:34]}  Rad8 {[%clk 0:01:58]} 15. Rxd8 {[%clk 0:01:49]}  Rxd8 {[%clk 0:01:59]} 16. Qb3 {[%clk 0:01:49]}  Bxf3 {[%clk 0:01:25]} 17. gxf3 {[%clk 0:01:49]}  Qb6 {[%clk 0:01:11]} 18. Bxf7+ {[%clk 0:01:46]}  Kh8 {[%clk 0:01:12]} 19. Qxb6 {[%clk 0:01:40]}  axb6 {[%clk 0:01:13]} 20. Rd1 {[%clk 0:01:36]}  Rf8 {[%clk 0:01:13]} 21. Bc4 {[%clk 0:01:29]}  h5 {[%clk 0:01:08]} 22. Bb5 {[%clk 0:01:26]}  Rd8 {[%clk 0:00:33]} 23. Rxd8+ {[%clk 0:01:20]}  Bxd8 {[%clk 0:00:34]} 24. Bxc6 {[%clk 0:01:18]}  bxc6 {[%clk 0:00:35]} 25. Bxe5 {[%clk 0:01:18]}  Nd7 {[%clk 0:00:36]} 26. f4 {[%clk 0:01:12]}  Kg8 {[%clk 0:00:35]} 27. Kg2 {[%clk 0:01:12]}  Kf7 {[%clk 0:00:35]} 28. Kf3 {[%clk 0:01:11]}  g5 {[%clk 0:00:36]} 29. Ke4 {[%clk 0:01:06]}  Nc5+ {[%clk 0:00:30]} 30. Kf5 {[%clk 0:00:44]}  gxf4 {[%clk 0:00:30]} 31. exf4 {[%clk 0:00:45]}  Nd3 {[%clk 0:00:31]} 32. Ne4 {[%clk 0:00:45]}  Be7 {[%clk 0:00:23]} 33. Ng5+ {[%clk 0:00:33]}  Ke8 {[%clk 0:00:18]} 34. Ke6 {[%clk 0:00:28]}  Nc5+ {[%clk 0:00:15]} 35. Kf5 {[%clk 0:00:27]}  Nd3 {[%clk 0:00:16]} 36. Ne4 {[%clk 0:00:22]}  Kf7 {[%clk 0:00:16]} 37. Ng3 {[%clk 0:00:20]}  h4 {[%clk 0:00:15]} 38. Ne4 {[%clk 0:00:21]}  Ke8 {[%clk 0:00:14]} 39. Kg4 {[%clk 0:00:11]}  Kd7 {[%clk 0:00:11]} 40. Kf5 {[%clk 0:00:10]}  Ke8 {[%clk 0:00:11]} 41. f3 {[%clk 0:00:10]}  Kd7 {[%clk 0:00:11]} 42. Ng5 {[%clk 0:00:10]}  Ne1 {[%clk 0:00:09]} 43. Kg4 {[%clk 0:00:10]}  b5 {[%clk 0:00:06]} 44. Bc3 {[%clk 0:00:07]}  c5 {[%clk 0:00:03]} 45. Bxe1 {[%clk 0:00:06]} 1-0


[Site "https://www.chess.com"]

[Event "Titled Tuesday Blitz May 23 Late 2023"]
[White "Naroditsky, Daniel"]
[Black "Sivakumar, Shaaketh"]
[WhiteFideId "2026961"]
[BlackFideId "30940176"]
[WhiteElo "2633"]
[BlackElo "2174"]
[Result "1-0"]
[Round "11"]
[TimeControl "180+2"]
[Date "2023.05.23"]
[WhiteClock "0:01:41"]
[BlackClock "0:01:16"]

1. d4 {[%clk 0:03:00]}  e6 {[%clk 0:03:00]} 2. Nc3 {[%clk 0:03:00]}  b6 {[%clk 0:02:58]} 3. e4 {[%clk 0:03:00]}  Bb7 {[%clk 0:02:58]} 4. Bd3 {[%clk 0:03:00]}  Bb4 {[%clk 0:02:58]} 5. Ne2 {[%clk 0:03:00]}  Nf6 {[%clk 0:02:23]} 6. O-O {[%clk 0:02:47]}  Bxc3 {[%clk 0:02:20]} 7. Nxc3 {[%clk 0:02:48]}  c5 {[%clk 0:02:19]} 8. d5 {[%clk 0:02:44]}  O-O {[%clk 0:02:17]} 9. Bg5 {[%clk 0:02:43]}  h6 {[%clk 0:02:17]} 10. Bh4 {[%clk 0:02:43]}  d6 {[%clk 0:02:15]} 11. f4 {[%clk 0:02:32]}  Nbd7 {[%clk 0:02:03]} 12. dxe6 {[%clk 0:02:30]}  fxe6 {[%clk 0:02:03]} 13. Bc4 {[%clk 0:02:29]}  Qe8 {[%clk 0:02:03]} 14. Qxd6 {[%clk 0:02:22]}  Rd8 {[%clk 0:01:41]} 15. Qxe6+ {[%clk 0:02:18]}  Kh8 {[%clk 0:01:36]} 16. e5 {[%clk 0:02:09]}  Nh5 {[%clk 0:01:35]} 17. Bxd8 {[%clk 0:02:04]}  Qxd8 {[%clk 0:01:32]} 18. Rad1 {[%clk 0:01:42]}  Nxf4 {[%clk 0:01:32]} 19. Qxd7 {[%clk 0:01:42]}  Nh3+ {[%clk 0:01:26]} 20. Qxh3 {[%clk 0:01:41]}  Qd4+ {[%clk 0:01:16]} 21. Rxd4 {[%clk 0:01:41]} 1-0


[Site "https://www.chess.com"]

[Event "Titled Tuesday Blitz May 23 Late 2023"]
[White "Ilkhomi, Jaloliddin"]
[Black "Maksimovic, Bojan"]
[WhiteFideId "14700948"]
[BlackFideId "14408120"]
[WhiteElo "2045"]
[BlackElo "2468"]
[Result "0-1"]
[Round "11"]
[TimeControl "180+2"]
[Date "2023.05.23"]
[WhiteClock "0:01:30"]
[BlackClock "0:02:24"]

1. Nf3 {[%clk 0:03:00]}  g6 {[%clk 0:03:00]} 2. c4 {[%clk 0:02:58]}  Bg7 {[%clk 0:02:58]} 3. d4 {[%clk 0:02:58]}  Nf6 {[%clk 0:02:56]} 4. Nc3 {[%clk 0:02:58]}  d6 {[%clk 0:02:56]} 5. e4 {[%clk 0:02:58]}  O-O {[%clk 0:02:55]} 6. Be2 {[%clk 0:02:58]}  Nbd7 {[%clk 0:02:55]} 7. O-O {[%clk 0:02:50]}  e5 {[%clk 0:02:55]} 8. h3 {[%clk 0:02:42]}  exd4 {[%clk 0:02:53]} 9. Nxd4 {[%clk 0:02:43]}  Re8 {[%clk 0:02:53]} 10. f3 {[%clk 0:02:36]}  Nh5 {[%clk 0:02:52]} 11. Re1 {[%clk 0:02:31]}  Qh4 {[%clk 0:02:34]} 12. Be3 {[%clk 0:02:26]}  Be5 {[%clk 0:02:34]} 13. Rf1 {[%clk 0:01:40]}  Qg3 {[%clk 0:02:27]} 14. f4 {[%clk 0:01:30]}  Qxe3+ {[%clk 0:02:24]} 0-1


[Site "https://www.chess.com"]

[Event "Titled Tuesday Blitz May 23 Late 2023"]
[White "Przybylski, Wojciech"]
[Black "Dimitrov, Atanas"]
[WhiteFideId "1117599"]
[BlackFideId "2901315"]
[WhiteElo "2222"]
[BlackElo "2714"]
[Result "0-1"]
[Round "11"]
[TimeControl "180+2"]
[Date "2023.05.23"]
[WhiteClock "0:00:00"]
[BlackClock "0:00:04"]

1. e4 {[%clk 0:02:59]}  c5 {[%clk 0:02:59]} 2. Nf3 {[%clk 0:02:54]}  d6 {[%clk 0:02:59]} 3. Bb5+ {[%clk 0:02:53]}  Bd7 {[%clk 0:02:59]} 4. a4 {[%clk 0:02:52]}  Nf6 {[%clk 0:02:58]} 5. Bd3 {[%clk 0:02:51]}  Nc6 {[%clk 0:02:57]} 6. c3 {[%clk 0:02:51]}  g6 {[%clk 0:02:57]} 7. O-O {[%clk 0:02:50]}  Bg7 {[%clk 0:02:57]} 8. Re1 {[%clk 0:02:50]}  O-O {[%clk 0:02:57]} 9. Bc2 {[%clk 0:02:50]}  Bg4 {[%clk 0:02:53]} 10. h3 {[%clk 0:02:49]}  Bxf3 {[%clk 0:02:52]} 11. Qxf3 {[%clk 0:02:49]}  Rc8 {[%clk 0:02:50]} 12. d3 {[%clk 0:02:49]}  Nd7 {[%clk 0:02:40]} 13. Nd2 {[%clk 0:02:46]}  e6 {[%clk 0:02:39]} 14. Qe2 {[%clk 0:02:39]}  d5 {[%clk 0:02:33]} 15. Nf3 {[%clk 0:02:37]}  Nde5 {[%clk 0:02:26]} 16. Nxe5 {[%clk 0:02:35]}  Nxe5 {[%clk 0:02:27]} 17. f4 {[%clk 0:02:33]}  Nc6 {[%clk 0:02:27]} 18. e5 {[%clk 0:02:32]}  Re8 {[%clk 0:02:24]} 19. Be3 {[%clk 0:02:30]}  d4 {[%clk 0:02:24]} 20. Bf2 {[%clk 0:02:29]}  Ne7 {[%clk 0:02:01]} 21. a5 {[%clk 0:02:21]}  dxc3 {[%clk 0:01:58]} 22. bxc3 {[%clk 0:02:20]}  Nd5 {[%clk 0:01:59]} 23. Qd2 {[%clk 0:02:13]}  b6 {[%clk 0:01:55]} 24. Ba4 {[%clk 0:02:09]}  Rf8 {[%clk 0:01:50]} 25. d4 {[%clk 0:01:51]}  cxd4 {[%clk 0:01:46]} 26. Bxd4 {[%clk 0:01:50]}  Qh4 {[%clk 0:01:43]} 27. axb6 {[%clk 0:01:39]}  axb6 {[%clk 0:01:38]} 28. Re4 {[%clk 0:01:12]}  Rfd8 {[%clk 0:01:34]} 29. Qf2 {[%clk 0:00:51]}  Qxf2+ {[%clk 0:01:28]} 30. Bxf2 {[%clk 0:00:51]}  Nxc3 {[%clk 0:01:18]} 31. Rb4 {[%clk 0:00:51]}  b5 {[%clk 0:00:55]} 32. Rxb5 {[%clk 0:00:13]}  Ne2+ {[%clk 0:00:33]} 33. Kh2 {[%clk 0:00:13]}  Nxf4 {[%clk 0:00:34]} 34. Bh4 {[%clk 0:00:08]}  Rd5 {[%clk 0:00:33]} 35. Bf6 {[%clk 0:00:05]}  Bxf6 {[%clk 0:00:28]} 36. exf6 {[%clk 0:00:05]}  Rxb5 {[%clk 0:00:28]} 37. Bxb5 {[%clk 0:00:05]}  Nd5 {[%clk 0:00:28]} 38. Rf1 {[%clk 0:00:04]}  h6 {[%clk 0:00:26]} 39. h4 {[%clk 0:00:03]}  g5 {[%clk 0:00:21]} 40. Bd3 {[%clk 0:00:03]}  Rc3 {[%clk 0:00:20]} 41. Be4 {[%clk 0:00:03]}  Nf4 {[%clk 0:00:16]} 42. hxg5 {[%clk 0:00:03]}  h5 {[%clk 0:00:17]} 43. Ra1 {[%clk 0:00:03]}  Rc8 {[%clk 0:00:09]} 44. Ra7 {[%clk 0:00:03]}  Ne2 {[%clk 0:00:06]} 45. Kh3 {[%clk 0:00:03]}  Nc3 {[%clk 0:00:06]} 46. Bf3 {[%clk 0:00:03]}  Nd5 {[%clk 0:00:06]} 47. Kh4 {[%clk 0:00:03]}  Nf4 {[%clk 0:00:06]} 48. Ra4 {[%clk 0:00:03]}  Ng6+ {[%clk 0:00:05]} 49. Kxh5 {[%clk 0:00:03]}  Rc1 {[%clk 0:00:05]} 50. Ra8+ {[%clk 0:00:03]}  Kh7 {[%clk 0:00:06]} 51. Ra3 {[%clk 0:00:02]}  Rh1+ {[%clk 0:00:04]} 52. Kg4 {[%clk 0:00:03]}  Rh4+ {[%clk 0:00:05]} 53. Kg3 {[%clk 0:00:03]}  Rb4 {[%clk 0:00:05]} 54. Ra7 {[%clk 0:00:03]}  Ne5 {[%clk 0:00:05]} 55. Re7 {[%clk 0:00:02]}  Kg6 {[%clk 0:00:05]} 56. Re8 {[%clk 0:00:03]}  Kxg5 {[%clk 0:00:06]} 57. Ba8 {[%clk 0:00:02]}  Kxf6 {[%clk 0:00:06]} 58. Rh8 {[%clk 0:00:02]}  Rb3+ {[%clk 0:00:06]} 59. Bf3 {[%clk 0:00:02]}  Kg7 {[%clk 0:00:06]} 60. Rc8 {[%clk 0:00:01]}  Ng6 {[%clk 0:00:06]} 61. Kf2 {[%clk 0:00:02]}  e5 {[%clk 0:00:06]} 62. Kg3 {[%clk 0:00:02]}  f5 {[%clk 0:00:07]} 63. Kf2 {[%clk 0:00:02]}  e4 {[%clk 0:00:07]} 64. Be2 {[%clk 0:00:02]}  Nf4 {[%clk 0:00:06]} 65. Rc7+ {[%clk 0:00:02]}  Kf6 {[%clk 0:00:07]} 66. Bf1 {[%clk 0:00:03]}  Kg5 {[%clk 0:00:06]} 67. Kg1 {[%clk 0:00:03]}  Rb2 {[%clk 0:00:04]} 68. Re7 {[%clk 0:00:02]}  Nd5 {[%clk 0:00:04]} 69. Re8 {[%clk 0:00:00]}  Ne3 {[%clk 0:00:04]} 0-1


[Site "https://www.chess.com"]

[Event "Titled Tuesday Blitz May 23 Late 2023"]
[White "Denishev, Marat"]
[Black "Mekhitarian, Krikor Sevag"]
[WhiteFideId "24131563"]
[BlackFideId "2107660"]
[WhiteElo "2311"]
[BlackElo "2604"]
[Result "0-1"]
[Round "11"]
[TimeControl "180+2"]
[Date "2023.05.23"]
[WhiteClock "0:00:02"]
[BlackClock "0:00:04"]

1. d4 {[%clk 0:03:00]}  d5 {[%clk 0:02:58]} 2. Nc3 {[%clk 0:02:58]}  c5 {[%clk 0:02:57]} 3. e4 {[%clk 0:02:54]}  dxe4 {[%clk 0:02:52]} 4. Bb5+ {[%clk 0:02:51]}  Bd7 {[%clk 0:02:50]} 5. dxc5 {[%clk 0:02:49]}  Nf6 {[%clk 0:02:41]} 6. Nge2 {[%clk 0:02:45]}  Qa5 {[%clk 0:02:37]} 7. Bxd7+ {[%clk 0:02:38]}  Nbxd7 {[%clk 0:02:38]} 8. O-O {[%clk 0:02:38]}  Qxc5 {[%clk 0:02:32]} 9. Ng3 {[%clk 0:02:34]}  Qc6 {[%clk 0:02:30]} 10. Qe2 {[%clk 0:02:25]}  e6 {[%clk 0:02:20]} 11. Ngxe4 {[%clk 0:02:22]}  Be7 {[%clk 0:02:11]} 12. Bf4 {[%clk 0:02:18]}  O-O {[%clk 0:02:05]} 13. Rad1 {[%clk 0:02:17]}  Rac8 {[%clk 0:02:01]} 14. Rd2 {[%clk 0:02:05]}  Bb4 {[%clk 0:01:47]} 15. Rd3 {[%clk 0:01:52]}  Nxe4 {[%clk 0:01:38]} 16. Nxe4 {[%clk 0:01:48]}  e5 {[%clk 0:01:03]} 17. Bd2 {[%clk 0:01:24]}  Be7 {[%clk 0:00:52]} 18. Bc3 {[%clk 0:01:11]}  Rfd8 {[%clk 0:00:50]} 19. Rfd1 {[%clk 0:01:02]}  f6 {[%clk 0:00:49]} 20. Nd6 {[%clk 0:00:53]}  Rc7 {[%clk 0:00:26]} 21. Nf5 {[%clk 0:00:48]}  Bf8 {[%clk 0:00:27]} 22. Qg4 {[%clk 0:00:34]}  g6 {[%clk 0:00:27]} 23. Rd6 {[%clk 0:00:16]}  Bxd6 {[%clk 0:00:20]} 24. Rxd6 {[%clk 0:00:17]}  Qc4 {[%clk 0:00:17]} 25. Qg3 {[%clk 0:00:04]}  Qe4 {[%clk 0:00:07]} 26. Ne7+ {[%clk 0:00:03]}  Kf7 {[%clk 0:00:07]} 27. Nd5 {[%clk 0:00:02]}  Rc6 {[%clk 0:00:06]} 28. Rxc6 {[%clk 0:00:01]}  bxc6 {[%clk 0:00:07]} 29. Ne3 {[%clk 0:00:02]}  Nf8 {[%clk 0:00:06]} 30. h4 {[%clk 0:00:02]}  h5 {[%clk 0:00:06]} 31. Qh3 {[%clk 0:00:01]}  Ne6 {[%clk 0:00:07]} 32. Qg3 {[%clk 0:00:02]}  Nf4 {[%clk 0:00:06]} 33. Kh2 {[%clk 0:00:02]}  a6 {[%clk 0:00:06]} 34. a3 {[%clk 0:00:02]}  Nd5 {[%clk 0:00:03]} 35. Bd2 {[%clk 0:00:01]}  Nxe3 {[%clk 0:00:02]} 36. Bxe3 {[%clk 0:00:02]}  Qxc2 {[%clk 0:00:03]} 37. f4 {[%clk 0:00:02]}  Qf5 {[%clk 0:00:02]} 38. fxe5 {[%clk 0:00:02]}  fxe5 {[%clk 0:00:03]} 39. Bg5 {[%clk 0:00:02]}  Rd3 {[%clk 0:00:03]} 40. Qe1 {[%clk 0:00:02]}  Ke6 {[%clk 0:00:02]} 41. Qa5 {[%clk 0:00:02]}  Qe4 {[%clk 0:00:02]} 42. Qc7 {[%clk 0:00:01]}  Rd6 {[%clk 0:00:02]} 43. Qc8+ {[%clk 0:00:01]}  Kd5 {[%clk 0:00:02]} 44. Qg8+ {[%clk 0:00:02]}  Kd4 {[%clk 0:00:03]} 45. Qf8 {[%clk 0:00:03]}  Rd5 {[%clk 0:00:02]} 46. Qf2+ {[%clk 0:00:03]}  Kc4 {[%clk 0:00:02]} 47. Qf1+ {[%clk 0:00:04]}  Qd3 {[%clk 0:00:03]} 48. Qc1+ {[%clk 0:00:04]}  Kb5 {[%clk 0:00:03]} 49. a4+ {[%clk 0:00:04]}  Kxa4 {[%clk 0:00:03]} 50. Qxc6+ {[%clk 0:00:04]}  Qb5 {[%clk 0:00:03]} 51. Qc3 {[%clk 0:00:05]}  Qb4 {[%clk 0:00:02]} 52. Qc6+ {[%clk 0:00:05]}  Qb5 {[%clk 0:00:02]} 53. Qc3 {[%clk 0:00:05]}  Qb4 {[%clk 0:00:01]} 54. Qc7 {[%clk 0:00:05]}  Rb5 {[%clk 0:00:02]} 55. Qc2+ {[%clk 0:00:05]}  Qb3 {[%clk 0:00:02]} 56. Qc6 {[%clk 0:00:05]}  a5 {[%clk 0:00:02]} 57. Be7 {[%clk 0:00:05]}  Qd5 {[%clk 0:00:02]} 58. Qc2+ {[%clk 0:00:05]}  Rb3 {[%clk 0:00:02]} 59. Ba3 {[%clk 0:00:04]}  e4 {[%clk 0:00:02]} 60. Qe2 {[%clk 0:00:03]}  Qe5+ {[%clk 0:00:02]} 61. Kh1 {[%clk 0:00:03]}  Qd5 {[%clk 0:00:03]} 62. Qf1 {[%clk 0:00:02]}  Rd3 {[%clk 0:00:03]} 63. Qf8 {[%clk 0:00:02]}  Rd1+ {[%clk 0:00:02]} 64. Kh2 {[%clk 0:00:03]}  Qe5+ {[%clk 0:00:03]} 65. g3 {[%clk 0:00:03]}  Rd2+ {[%clk 0:00:04]} 66. Kh1 {[%clk 0:00:03]}  Qd5 {[%clk 0:00:03]} 67. Qe8+ {[%clk 0:00:03]}  Kb3 {[%clk 0:00:03]} 68. Qb8+ {[%clk 0:00:03]}  Ka2 {[%clk 0:00:03]} 69. Qf4 {[%clk 0:00:03]}  e3+ {[%clk 0:00:03]} 70. Kg1 {[%clk 0:00:02]}  Qg2# {[%clk 0:00:04]} 0-1


[Site "https://www.chess.com"]

[Event "Titled Tuesday Blitz May 23 Late 2023"]
[White "Pakleza, Zbigniew"]
[Black "Gubajdullin, Alexei"]
[WhiteFideId "1119290"]
[BlackFideId "4141202"]
[WhiteElo "2410"]
[BlackElo "2279"]
[Result "1-0"]
[Round "11"]
[TimeControl "180+2"]
[Date "2023.05.23"]
[WhiteClock "0:00:05"]
[BlackClock "0:00:10"]

1. d4 {[%clk 0:03:00]}  Nf6 {[%clk 0:02:59]} 2. Nf3 {[%clk 0:03:01]}  g6 {[%clk 0:02:58]} 3. Bf4 {[%clk 0:03:01]}  Bg7 {[%clk 0:02:55]} 4. e3 {[%clk 0:03:02]}  O-O {[%clk 0:02:54]} 5. Be2 {[%clk 0:03:02]}  d6 {[%clk 0:02:51]} 6. h3 {[%clk 0:03:02]}  Nc6 {[%clk 0:02:50]} 7. O-O {[%clk 0:03:02]}  e5 {[%clk 0:02:48]} 8. Bh2 {[%clk 0:03:01]}  Qe7 {[%clk 0:02:44]} 9. c4 {[%clk 0:02:59]}  h5 {[%clk 0:02:35]} 10. Nc3 {[%clk 0:02:58]}  e4 {[%clk 0:02:29]} 11. Nd2 {[%clk 0:02:57]}  h4 {[%clk 0:02:29]} 12. Nd5 {[%clk 0:02:46]}  Nxd5 {[%clk 0:02:22]} 13. cxd5 {[%clk 0:02:47]}  Nb4 {[%clk 0:02:18]} 14. Qb3 {[%clk 0:02:38]}  a5 {[%clk 0:01:59]} 15. Rac1 {[%clk 0:02:28]}  Bf5 {[%clk 0:01:36]} 16. a3 {[%clk 0:02:23]}  Nd3 {[%clk 0:01:35]} 17. Bxd3 {[%clk 0:02:23]}  exd3 {[%clk 0:01:35]} 18. e4 {[%clk 0:02:10]}  Bxh3 {[%clk 0:01:30]} 19. Qxd3 {[%clk 0:02:02]}  Bg4 {[%clk 0:01:30]} 20. Rc3 {[%clk 0:01:30]}  Rac8 {[%clk 0:01:21]} 21. Rfc1 {[%clk 0:01:27]}  Bh6 {[%clk 0:01:19]} 22. f3 {[%clk 0:01:16]}  Bd7 {[%clk 0:00:52]} 23. R1c2 {[%clk 0:01:09]}  h3 {[%clk 0:00:45]} 24. g4 {[%clk 0:00:53]}  f5 {[%clk 0:00:44]} 25. e5 {[%clk 0:00:54]}  Qg5 {[%clk 0:00:37]} 26. Nf1 {[%clk 0:00:30]}  fxg4 {[%clk 0:00:37]} 27. f4 {[%clk 0:00:29]}  Rxf4 {[%clk 0:00:36]} 28. Bxf4 {[%clk 0:00:28]}  Qxf4 {[%clk 0:00:36]} 29. Qxg6+ {[%clk 0:00:23]}  Kh8 {[%clk 0:00:34]} 30. Rf2 {[%clk 0:00:19]}  Qg5 {[%clk 0:00:31]} 31. Qxg5 {[%clk 0:00:16]}  Bxg5 {[%clk 0:00:31]} 32. e6 {[%clk 0:00:13]}  Bb5 {[%clk 0:00:30]} 33. Ng3 {[%clk 0:00:09]}  Bh4 {[%clk 0:00:29]} 34. Kh2 {[%clk 0:00:09]}  Rg8 {[%clk 0:00:27]} 35. Rxc7 {[%clk 0:00:08]}  Bg5 {[%clk 0:00:25]} 36. Rff7 {[%clk 0:00:07]}  Bd3 {[%clk 0:00:25]} 37. e7 {[%clk 0:00:07]}  Bh6 {[%clk 0:00:24]} 38. Rxb7 {[%clk 0:00:05]}  Bg6 {[%clk 0:00:21]} 39. Rf6 {[%clk 0:00:05]}  Bd3 {[%clk 0:00:20]} 40. Rxd6 {[%clk 0:00:05]}  Bg7 {[%clk 0:00:20]} 41. Rd8 {[%clk 0:00:04]}  Bg6 {[%clk 0:00:19]} 42. d6 {[%clk 0:00:04]}  Bxd4 {[%clk 0:00:18]} 43. Rxg8+ {[%clk 0:00:04]}  Kxg8 {[%clk 0:00:18]} 44. d7 {[%clk 0:00:05]}  Be5 {[%clk 0:00:10]} 45. e8=Q+ {[%clk 0:00:05]} 1-0


[Site "https://www.chess.com"]

[Event "Titled Tuesday Blitz May 23 Late 2023"]
[White "Alex_Sahakyan2006"]
[Black "Deviprasath, Sharvesh"]
[BlackFideId "30938228"]
[WhiteElo "2683"]
[BlackElo "2168"]
[Result "1-0"]
[Round "11"]
[TimeControl "180+2"]
[Date "2023.05.23"]
[WhiteClock "0:00:01"]
[BlackClock "0:00:00"]

1. a3 {[%clk 0:03:00]}  g6 {[%clk 0:02:59]} 2. h4 {[%clk 0:02:48]}  Nf6 {[%clk 0:02:59]} 3. Nc3 {[%clk 0:02:46]}  d5 {[%clk 0:02:58]} 4. d4 {[%clk 0:02:44]}  c5 {[%clk 0:02:57]} 5. dxc5 {[%clk 0:02:39]}  d4 {[%clk 0:02:53]} 6. Na4 {[%clk 0:02:29]}  Nc6 {[%clk 0:02:53]} 7. b4 {[%clk 0:02:23]}  Bg7 {[%clk 0:02:25]} 8. Nf3 {[%clk 0:02:17]}  Bf5 {[%clk 0:02:21]} 9. g3 {[%clk 0:02:05]}  b5 {[%clk 0:02:17]} 10. Nb2 {[%clk 0:01:54]}  O-O {[%clk 0:02:15]} 11. Bg2 {[%clk 0:01:50]}  e5 {[%clk 0:02:09]} 12. O-O {[%clk 0:01:48]}  e4 {[%clk 0:01:54]} 13. Bg5 {[%clk 0:01:38]}  exf3 {[%clk 0:01:50]} 14. Bxf3 {[%clk 0:01:39]}  Qd7 {[%clk 0:01:49]} 15. Bxf6 {[%clk 0:01:24]}  Bxf6 {[%clk 0:01:47]} 16. Nd3 {[%clk 0:01:25]}  Rfe8 {[%clk 0:01:07]} 17. a4 {[%clk 0:01:00]}  a6 {[%clk 0:01:04]} 18. Qd2 {[%clk 0:00:52]}  bxa4 {[%clk 0:00:49]} 19. Rxa4 {[%clk 0:00:43]}  Bh3 {[%clk 0:00:33]} 20. Rfa1 {[%clk 0:00:40]}  Rac8 {[%clk 0:00:28]} 21. Rxa6 {[%clk 0:00:38]}  Bg7 {[%clk 0:00:26]} 22. Qf4 {[%clk 0:00:31]}  Ne5 {[%clk 0:00:18]} 23. Ra7 {[%clk 0:00:29]}  Qe6 {[%clk 0:00:16]} 24. R1a6 {[%clk 0:00:24]}  Nxd3 {[%clk 0:00:15]} 25. cxd3 {[%clk 0:00:22]}  Qb3 {[%clk 0:00:14]} 26. Kh2 {[%clk 0:00:16]}  Be6 {[%clk 0:00:12]} 27. h5 {[%clk 0:00:15]}  gxh5 {[%clk 0:00:09]} 28. Bxh5 {[%clk 0:00:14]}  Rf8 {[%clk 0:00:08]} 29. Bg4 {[%clk 0:00:10]}  Bxg4 {[%clk 0:00:06]} 30. Qxg4 {[%clk 0:00:11]}  Rce8 {[%clk 0:00:06]} 31. Rh6 {[%clk 0:00:08]}  Qc2 {[%clk 0:00:04]} 32. Rf6 {[%clk 0:00:03]}  Rxe2 {[%clk 0:00:03]} 33. Kg2 {[%clk 0:00:04]}  Re1 {[%clk 0:00:00]} 34. Raxf7 {[%clk 0:00:01]} 1-0


[Site "https://www.chess.com"]

[Event "Titled Tuesday Blitz May 23 Late 2023"]
[White "Chor, Kevin"]
[Black "Toniutti, Ezio"]
[WhiteFideId "2090740"]
[BlackFideId "113034"]
[WhiteElo "2636"]
[BlackElo "2215"]
[Result "0-1"]
[Round "11"]
[TimeControl "180+2"]
[Date "2023.05.23"]
[WhiteClock "0:00:07"]
[BlackClock "0:00:32"]

1. e4 {[%clk 0:03:00]}  e5 {[%clk 0:02:56]} 2. Nf3 {[%clk 0:03:00]}  Nc6 {[%clk 0:02:56]} 3. Bb5 {[%clk 0:03:00]}  a6 {[%clk 0:02:53]} 4. Ba4 {[%clk 0:03:00]}  d6 {[%clk 0:02:53]} 5. c3 {[%clk 0:02:56]}  f5 {[%clk 0:02:52]} 6. exf5 {[%clk 0:02:43]}  Bxf5 {[%clk 0:02:51]} 7. d4 {[%clk 0:02:42]}  e4 {[%clk 0:02:39]} 8. d5 {[%clk 0:02:26]}  exf3 {[%clk 0:02:36]} 9. Qxf3 {[%clk 0:02:03]}  Bxb1 {[%clk 0:02:32]} 10. O-O {[%clk 0:01:43]}  b5 {[%clk 0:02:23]} 11. Rxb1 {[%clk 0:01:20]}  Ne5 {[%clk 0:02:15]} 12. Qe2 {[%clk 0:01:08]}  bxa4 {[%clk 0:02:13]} 13. f4 {[%clk 0:01:08]}  Nf6 {[%clk 0:02:04]} 14. fxe5 {[%clk 0:01:06]}  dxe5 {[%clk 0:02:04]} 15. Qxe5+ {[%clk 0:01:04]}  Qe7 {[%clk 0:02:04]} 16. Qg3 {[%clk 0:01:04]}  O-O-O {[%clk 0:01:51]} 17. Bg5 {[%clk 0:00:49]}  Qc5+ {[%clk 0:01:46]} 18. Kh1 {[%clk 0:00:46]}  Bd6 {[%clk 0:01:41]} 19. Qd3 {[%clk 0:00:43]}  Kb7 {[%clk 0:01:38]} 20. b3 {[%clk 0:00:32]}  Rde8 {[%clk 0:01:29]} 21. bxa4+ {[%clk 0:00:29]}  Ka7 {[%clk 0:01:29]} 22. Rfe1 {[%clk 0:00:24]}  Ng4 {[%clk 0:01:24]} 23. Bh4 {[%clk 0:00:17]}  Rxe1+ {[%clk 0:01:05]} 24. Rxe1 {[%clk 0:00:16]}  g5 {[%clk 0:00:52]} 25. Qe4 {[%clk 0:00:08]}  h5 {[%clk 0:00:47]} 26. h3 {[%clk 0:00:04]}  gxh4 {[%clk 0:00:42]} 27. hxg4 {[%clk 0:00:04]}  hxg4 {[%clk 0:00:42]} 28. Qxg4 {[%clk 0:00:05]}  h3 {[%clk 0:00:36]} 29. gxh3 {[%clk 0:00:05]}  Qf2 {[%clk 0:00:34]} 30. Qd4+ {[%clk 0:00:05]}  Qxd4 {[%clk 0:00:33]} 31. cxd4 {[%clk 0:00:06]}  Rxh3+ {[%clk 0:00:33]} 32. Kg2 {[%clk 0:00:07]}  Ra3 {[%clk 0:00:34]} 33. Re2 {[%clk 0:00:06]}  Rxa4 {[%clk 0:00:33]} 34. Rd2 {[%clk 0:00:07]}  Ra5 {[%clk 0:00:33]} 35. Kf3 {[%clk 0:00:07]}  Rxd5 {[%clk 0:00:33]} 36. Ke4 {[%clk 0:00:08]}  Rh5 {[%clk 0:00:33]} 37. d5 {[%clk 0:00:09]}  Rh4+ {[%clk 0:00:33]} 38. Kd3 {[%clk 0:00:07]}  Kb6 {[%clk 0:00:32]} 0-1


[Site "https://www.chess.com"]